bitfinex/quotes_SOLUSD_20241223
["timestamp","ask_amount","ask_price","bid_price","bid_amount"]
[1734943498742,12.9389902,183.18,183.12,7.9806]
[1734943498918,12.9389902,183.19,183.12,20.9195902]
[1734943501064,12.9389902,183.14,183.12,1.5616]
[1734943501225,12.9389902,183.14,183.07,21.0817902]
[1734943501428,12.9389902,183.13,183.07,8.1428]
[1734943501625,12.9389902,183.12,183.07,8.1428]
[1734943503232,8.1868,183.22,183.08,12.9389902]
[1734943503233,12.9389902,183.15,183.08,12.9389902]
[1734943503432,17.0337902,183.16,183.09,12.9389902]
[1734943503962,12.9389902,183.17,183.09,12.9389902]
[1734943504254,12.9389902,183.19,183.11,12.9389902]
[1734943504861,12.9389902,183.19,183.12,12.9389902]
[1734943506277,12.9389902,183.19,183.11,12.9389902]
[1734943507656,12.9389902,183.18,183.11,12.9389902]
[1734943508030,12.9389902,183.19,183.11,12.9389902]
[1734943508234,12.9389902,183.18,183.11,12.9389902]
[1734943508859,12.9389902,183.2,183.13,12.9389902]
[1734943509164,12.9389902,183.2,183.1,25.385784]
[1734943509165,12.9389902,183.2,183.12,12.9389902]
[1734943509343,12.9389902,183.19,183.12,12.9389902]
[1734943509824,12.93899,183.25,183.14,12.9389902]
[1734943510024,12.9389902,183.25,183.18,12.9389902]
[1734943510330,22.72154318,183.28,183.21,12.9389902]
[1734943510542,12.9389902,183.28,183.21,19.4643902]
[1734943511737,4.0908,183.34,183.24,12.9389902]
[1734943511940,12.9389902,183.32,183.25,12.9389902]
[1734943512144,4.0908,183.34,183.23,1.6011]
[1734943512145,12.9389902,183.26,183.23,1.6011]
[1734943512335,12.9389902,183.25,183.23,1.6011]
[1734943513062,12.9389902,183.26,183.23,1.6011]
[1734943513254,12.9389902,183.27,183.23,1.6011]
[1734943513456,12.9389902,183.28,183.23,1.6011]
[1734943514249,12.9389902,183.29,183.23,14.5400902]
[1734943514449,12.9389902,183.3,183.23,14.5400902]
[1734943514649,4.0912,183.32,183.24,12.9389902]
[1734943514852,12.9389902,183.34,183.27,12.9389902]
[1734943515048,12.9389902,183.32,183.25,12.9389902]
[1734943515253,12.9389902,183.31,183.24,12.9389902]
[1734943516267,12.9389902,183.3,183.23,14.5400902]
[1734943516571,12.9389902,183.31,183.24,12.9389902]
[1734943516961,12.9389902,183.34,183.27,12.9389902]
[1734943517154,12.9389902,183.31,183.25,12.9389902]
[1734943517357,12.9389902,183.31,183.24,12.9389902]
[1734943517991,12.9389902,183.31,183.25,12.9389902]
[1734943518340,12.9389902,183.32,183.26,12.9389902]
[1734943518672,12.9389902,183.34,183.28,12.9389902]
[1734943519062,0.6715179,183.36,183.24,0.81836692]
[1734943519063,12.9389902,183.33,183.26,12.9389902]
[1734943519368,12.9389902,183.32,183.25,12.9389902]
[1734943519593,12.9389902,183.3,183.24,12.9389902]
[1734943520271,12.9389902,183.31,183.24,12.9389902]
[1734943520470,12.9389902,183.32,183.26,12.9389902]
[1734943520674,12.9389902,183.33,183.26,12.9389902]
[1734943522167,12.9389902,183.33,183.27,12.9389902]
[1734943522659,12.9389902,183.34,183.27,12.9389902]
[1734943522866,17.0294902,183.35,183.28,12.9389902]
[1734943524159,12.9389902,183.34,183.28,12.9389902]
[1734943524866,4.0905,183.35,183.29,12.9389902]
[1734943525582,0.6715179,183.36,183.3,12.9389902]
[1734943525765,0.6715179,183.36,183.31,12.9389902]
[1734943525959,0.6715179,183.36,183.33,12.9389902]
[1734943526887,0.6715179,183.36,183.34,12.9389902]
[1734943527564,0.6715179,183.36,183.35,12.9389902]
[1734943527766,0.6715179,183.36,183.35,37.53383577]
[1734943530486,12.9389902,183.51,183.41,20.0]
[1734943530658,12.9389902,183.52,183.45,12.9389902]
[1734943531493,12.9389902,183.53,183.46,12.9389902]
[1734943531787,12.9389902,183.53,183.43,0.81745329]
[1734943531788,13.6105081,183.54,183.47,12.9389902]
[1734943532372,12.9389902,183.53,183.46,12.9389902]
[1734943533262,13.6105081,183.54,183.47,12.9389902]
[1734943533870,13.6105081,183.54,183.43,0.81745329]
[1734943533871,12.9389902,183.52,183.45,12.9389902]
[1734943534160,12.9389902,183.47,183.38,6.5163]
[1734943534363,12.9389902,183.44,183.38,6.5163]
[1734943534597,12.9389902,183.44,183.37,12.9389902]
[1734943535707,12.9389902,183.43,183.36,12.9389902]
[1734943536275,12.9389902,183.44,183.37,12.9389902]
[1734943536978,12.9389902,183.4,183.34,6.5134]
[1734943537178,12.9389902,183.39,183.34,6.5134]
[1734943537494,12.9389902,183.41,183.34,19.4523902]
[1734943538999,4.0887,183.43,183.36,12.9389902]
[1734943539000,12.9389902,183.43,183.36,12.9389902]
[1734943539299,12.9389902,183.42,183.36,12.9389902]
[1734943539481,12.9389902,183.43,183.36,12.9389902]
[1734943540067,12.9389902,183.44,183.37,32.9389902]
[1734943540269,12.9389902,183.45,183.39,12.9389902]
[1734943540570,12.9389902,183.47,183.4,12.9389902]
[1734943541381,12.9389902,183.46,183.39,12.9389902]
[1734943542272,12.9389902,183.44,183.36,12.9389902]
[1734943542478,12.2614,183.5,183.36,12.9389902]
[1734943542479,12.9389902,183.43,183.36,12.9389902]
[1734943542779,12.9389902,183.44,183.37,12.9389902]
[1734943543503,12.9389902,183.43,183.36,12.9389902]
[1734943544301,12.9389902,183.44,183.37,12.9389902]
[1734943544500,12.9389902,183.45,183.37,12.9389902]
[1734943544998,12.9389902,183.44,183.37,12.9389902]
[1734943545375,12.9389902,183.45,183.37,12.9389902]
[1734943546107,12.9389902,183.44,183.36,12.9389902]
[1734943546291,12.9389902,183.4,183.33,14.4774902]
[1734943546606,12.9389902,183.4,183.33,1.5385]
[1734943546802,12.9389902,183.39,183.33,1.5385]
[1734943547014,12.9389902,183.37,183.3,19.2010902]
[1734943547178,12.9389902,183.37,183.3,12.9389902]
[1734943549017,4.0898,183.39,183.31,12.9389902]
[1734943549018,37.0287902,183.39,183.31,12.9389902]
[1734943549182,37.0287902,183.39,183.32,12.9389902]
[1734943549812,20.0,183.38,183.34,12.9389902]
[1734943550603,17.0279902,183.42,183.35,12.9389902]
[1734943551098,12.9389902,183.43,183.36,12.9389902]
[1734943551303,12.9389902,183.44,183.36,12.9389902]
[1734943551702,12.9389902,183.45,183.38,12.9389902]
[1734943552015,17.0271902,183.46,183.38,12.9389902]
[1734943552211,12.9389902,183.47,183.4,12.9389902]
[1734943552515,12.9389902,183.5,183.35,136.82549]
[1734943552697,12.0609,183.53,183.45,12.9389902]
[1734943552698,12.9389902,183.52,183.45,12.9389902]
[1734943552896,17.0255902,183.53,183.46,12.9389902]
[1734943554319,24.64241772,183.53,183.46,20.55581772]
[1734943554693,24.64241772,183.53,183.45,20.55581772]
[1734943557319,20.55581772,183.52,183.45,20.55581772]
[1734943557511,20.55581772,183.51,183.44,20.55581772]
[1734943557709,20.55581772,183.51,183.43,1.6404]
[1734943557710,20.55581772,183.49,183.43,1.6404]
[1734943558214,20.55581772,183.48,183.43,1.6404]
[1734943559313,20.55581772,183.47,183.34,2.47455919]
[1734943559503,20.55581772,183.45,183.37,20.55581772]
[1734943560015,20.55581772,183.46,183.39,20.55581772]
[1734943560202,20.55581772,183.47,183.4,20.55581772]
[1734943561317,20.55581772,183.49,183.41,20.55581772]
[1734943561631,20.55581772,183.5,183.43,20.55581772]
[1734943562211,20.55581772,183.51,183.43,20.55581772]
[1734943562407,4.0868,183.52,183.46,20.55581772]
[1734943562725,24.64261772,183.52,183.44,20.55581772]
[1734943563731,24.64261772,183.52,183.45,20.55581772]
[1734943565227,20.55581772,183.53,183.46,20.55581772]
[1734943566021,20.55581772,183.52,183.45,20.55581772]
[1734943568625,20.55581772,183.53,183.46,20.55581772]
[1734943568798,0.6715179,183.54,183.5,20.55581772]
[1734943569326,0.6715179,183.54,183.49,20.55581772]
[1734943569631,0.6715179,183.54,183.48,20.55581772]
[1734943570127,0.6715179,183.54,183.49,20.55581772]
[1734943570806,0.6715179,183.54,183.51,20.55581772]
[1734943571015,0.6715179,183.54,183.52,20.55581772]
[1734943572823,0.6715179,183.54,183.53,40.55581772]
[1734943573002,6.2825,183.68,183.56,20.0]
[1734943573199,20.55581772,183.67,183.6,20.55581772]
[1734943573608,26.83831772,183.68,183.61,20.55581772]
[1734943574013,20.55581772,183.68,183.61,20.55581772]
[1734943574241,20.55581772,183.69,183.61,20.55581772]
[1734943574504,20.55581772,183.69,183.62,20.55581772]
[1734943574705,20.55581772,183.7,183.63,20.55581772]
[1734943575418,20.55581772,183.71,183.64,20.55581772]
[1734943575724,0.6715179,183.72,183.66,20.55581772]
[1734943575943,0.6715179,183.72,183.67,20.55581772]
[1734943576247,0.6715179,183.72,183.67,12.81747259]
[1734943576547,0.6715179,183.72,183.66,36.59435659]
[1734943577250,0.6715179,183.72,183.68,12.81747259]
[1734943577431,0.6715179,183.72,183.69,12.81747259]
[1734943577627,0.6715179,183.72,183.7,12.81747259]
[1734943577833,0.6715179,183.72,183.68,36.59435659]
[1734943578344,0.6715179,183.72,183.68,44.28163436]
[1734943578725,0.6715179,183.72,183.69,20.50475036]
[1734943580949,0.6715179,183.72,183.64,2.13951323]
[1734943581143,20.50475036,183.71,183.64,2.13951323]
[1734943581448,21.17626826,183.72,183.65,21.32133433]
[1734943581634,0.6715179,183.72,183.66,20.50475036]
[1734943582467,21.17626826,183.72,183.65,20.50475036]
[1734943582764,20.50475036,183.71,183.64,20.50475036]
[1734943583251,20.50475036,183.68,183.61,20.50475036]
[1734943583762,4.7538179,183.72,183.61,0.81677362]
[1734943583927,20.50475036,183.68,183.6,20.50475036]
[1734943584127,20.50475036,183.69,183.62,20.50475036]
[1734943584346,20.50475036,183.7,183.62,20.50475036]
[1734943584651,20.50475036,183.71,183.64,20.50475036]
[1734943584952,25.25856826,183.72,183.64,20.50475036]
[1734943585147,21.17626826,183.72,183.64,20.50475036]
[1734943585349,21.17626826,183.72,183.63,20.0]
[1734943585548,21.17626826,183.72,183.64,20.50475036]
[1734943585852,0.6715179,183.72,183.66,20.50475036]
[1734943586051,0.6715179,183.72,183.64,0.81656734]
[1734943586052,0.6715179,183.72,183.67,20.50475036]
[1734943586239,0.6715179,183.72,183.7,20.50475036]
[1734943587453,0.6715179,183.72,183.67,20.50475036]
[1734943587754,0.6715179,183.72,183.66,20.50475036]
[1734943592348,0.6715179,183.72,183.62,0.81634452]
[1734943592349,20.50475036,183.7,183.62,20.50475036]
[1734943592851,20.50475036,183.7,183.63,20.50475036]
[1734943593262,22.08245036,183.7,183.61,20.50475036]
[1734943593486,20.50475036,183.69,183.61,20.50475036]
[1734943593773,1.5777,183.7,183.62,20.50475036]
[1734943593979,22.08245036,183.7,183.62,20.50475036]
[1734943595298,0.6715179,183.72,183.65,20.50475036]
[1734943595577,0.6715179,183.72,183.67,20.50475036]
[1734943596072,0.6715179,183.72,183.66,20.50475036]
[1734943596232,0.6715179,183.72,183.67,20.50475036]
[1734943596674,0.6715179,183.72,183.64,24.593413]
[1734943596675,0.6715179,183.72,183.68,20.50475036]
[1734943596874,0.6715179,183.72,183.69,20.50475036]
[1734943597078,0.6715179,183.72,183.7,20.50475036]
[1734943598273,0.6715179,183.72,183.69,20.50475036]
[1734943600096,20.50475036,183.76,183.69,20.50475036]
[1734943600409,12.81455477,183.76,183.69,12.81455477]
[1734943606810,12.81455477,183.74,183.67,12.81455477]
[1734943606983,12.81455477,183.72,183.65,12.81455477]
[1734943607166,12.81455477,183.7,183.61,12.81455477]
[1734943607372,12.81455477,183.68,183.61,12.81455477]
[1734943607595,12.81455477,183.7,183.61,12.81455477]
[1734943609396,12.81455477,183.7,183.63,12.81455477]
[1734943609621,6.3965,183.74,183.65,12.81455477]
[1734943609777,19.21105477,183.74,183.65,12.81455477]
[1734943611899,12.81455477,183.74,183.65,12.81455477]
[1734943612081,12.81455477,183.74,183.67,12.81455477]
[1734943612691,24.0816,183.75,183.67,12.81455477]
[1734943612994,4.0816,183.75,183.67,12.81455477]
[1734943613785,12.81455477,183.77,183.69,12.81455477]
[1734943613981,1.5926,183.8,183.72,12.81455477]
[1734943613982,14.40715477,183.8,183.72,12.81455477]
[1734943614191,6.0101,183.83,183.73,12.81455477]
[1734943614192,12.81455477,183.81,183.73,12.81455477]
[1734943615001,12.81455477,183.8,183.72,12.81455477]
[1734943615206,12.81455477,183.79,183.71,12.81455477]
[1734943615715,12.81455477,183.79,183.72,12.81455477]
[1734943616218,12.81455477,183.78,183.71,12.81455477]
[1734943617423,12.81455477,183.77,183.69,12.81455477]
[1734943618826,12.81455477,183.78,183.7,12.81455477]
[1734943619521,12.81455477,183.77,183.7,12.81455477]
[1734943620115,16.89545477,183.78,183.7,12.81455477]
[1734943620496,12.81455477,183.78,183.71,12.81455477]
[1734943620695,32.81455477,183.79,183.72,12.81455477]
[1734943620899,12.81455477,183.79,183.71,12.81455477]
[1734943622134,16.89485477,183.81,183.74,12.81455477]
[1734943622503,12.81455477,183.8,183.73,12.81455477]
[1734943623033,12.81455477,183.8,183.72,12.81455477]
[1734943623820,12.81455477,183.8,183.73,12.81455477]
[1734943628019,12.81455477,183.78,183.7,0.81620234]
[1734943628219,12.81455477,183.73,183.67,1.6153]
[1734943628629,12.81455477,183.72,183.67,1.6153]
[1734943628798,12.81455477,183.74,183.67,1.6153]
[1734943628994,12.81455477,183.74,183.67,14.42985477]
[1734943629303,12.81455477,183.77,183.69,12.81455477]
[1734943629622,12.81455477,183.76,183.69,12.81455477]
[1734943630621,12.81455477,183.78,183.7,12.81455477]
[1734943630924,12.81455477,183.78,183.71,12.81455477]
[1734943631324,12.81455477,183.79,183.71,12.81455477]
[1734943633112,18.82465477,183.83,183.75,12.81455477]
[1734943633608,12.81455477,183.82,183.74,12.81455477]
[1734943635430,18.82465477,183.83,183.75,12.81455477]
[1734943635735,18.82465477,183.83,183.76,12.81455477]
[1734943636021,18.82465477,183.83,183.75,12.81455477]
[1734943636327,12.81455477,183.84,183.76,13.63063387]
[1734943636505,16.89385477,183.86,183.78,12.81455477]
[1734943637206,12.81455477,183.86,183.78,12.81455477]
[1734943637718,12.81455477,183.86,183.79,12.81455477]
[1734943638608,4.0785,183.89,183.81,12.81455477]
[1734943638815,12.81455477,183.88,183.82,12.81455477]
[1734943640801,0.6715179,183.9,183.8,12.81455477]
[1734943640802,12.81455477,183.87,183.8,12.81455477]
[1734943641040,12.81455477,183.82,183.75,14.48005477]
[1734943641629,12.81455477,183.83,183.76,12.81455477]
[1734943642632,8.8281179,183.9,183.84,20.0]
[1734943642633,0.6715179,183.9,183.84,20.0]
[1734943642832,0.6715179,183.9,183.85,12.81455477]
[1734943643736,0.6715179,183.9,183.84,12.81455477]
[1734943644429,0.6715179,183.9,183.83,12.81455477]
[1734943644743,13.48607267,183.9,183.83,12.81455477]
[1734943645039,12.81455477,183.88,183.81,12.81455477]
[1734943645537,12.81455477,183.88,183.8,12.81455477]
[1734943646234,12.81455477,183.87,183.8,12.81455477]
[1734943647313,12.81455477,183.87,183.79,12.81455477]
[1734943647632,12.81455477,183.87,183.8,12.81455477]
[1734943647936,12.81455477,183.87,183.79,12.81455477]
[1734943651146,12.81455477,183.86,183.78,12.81455477]
[1734943651445,12.81455477,183.85,183.78,12.81455477]
[1734943652247,12.81455477,183.86,183.78,12.81455477]
[1734943653042,12.81455477,183.86,183.79,12.81455477]
[1734943653380,16.89305477,183.89,183.81,12.81455477]
[1734943653647,12.81455477,183.88,183.81,12.81455477]
[1734943653837,12.81455477,183.87,183.8,12.81455477]
[1734943654239,12.81455477,183.88,183.8,12.81455477]
[1734943654434,12.81455477,183.87,183.8,12.81455477]
[1734943654639,12.81455477,183.88,183.8,12.81455477]
[1734943655336,12.81455477,183.88,183.82,12.81455477]
[1734943655550,13.48607267,183.9,183.82,12.81455477]
[1734943656055,12.81455477,183.89,183.82,12.81455477]
[1734943660852,12.81455477,183.89,183.8,12.81455477]
[1734943664132,12.81455477,183.88,183.81,12.81455477]
[1734943664771,12.81455477,183.89,183.81,12.81455477]
[1734943664947,4.7499179,183.9,183.82,1.5212]
[1734943665274,12.81455477,183.89,183.81,12.81455477]
[1734943665437,12.81455477,183.87,183.79,12.81455477]
[1734943668462,0.6715179,183.9,183.85,12.81455477]
[1734943668665,0.6715179,183.9,183.87,12.81455477]
[1734943669351,0.6715179,183.9,183.85,12.81455477]
[1734943669872,0.6715179,183.9,183.87,12.81455477]
[1734943670455,0.6715179,183.9,183.88,12.81455477]
[1734943671149,0.6715179,183.9,183.87,12.81455477]
[1734943672197,0.6715179,183.9,183.89,12.81455477]
[1734943673997,15.01311942,184.02,183.95,12.81455477]
[1734943675904,14.98442439,184.02,183.95,12.81455477]
[1734943677390,2.16986962,184.02,183.99,12.81455477]
[1734943677592,2.16986962,184.02,184.0,12.81455477]
[1734943677766,2.16986962,184.02,184.01,12.81455477]
[1734943678387,2.16986962,184.02,184.01,14.47975477]
[1734943678699,2.16986962,184.02,184.01,15.29465494]
[1734943678908,2.16986962,184.02,183.97,14.47975477]
[1734943679069,2.16986962,184.02,183.97,1.6652]
[1734943679269,14.98442439,184.02,183.95,12.81455477]
[1734943680778,14.98442439,184.02,183.96,12.81455477]
[1734943681168,2.16986962,184.02,183.96,12.81455477]
[1734943682508,2.16986962,184.02,183.97,12.81455477]
[1734943682707,2.16986962,184.02,183.98,12.81455477]
[1734943682872,2.16986962,184.02,183.97,12.81455477]
[1734943685416,14.98442439,184.02,183.95,12.81455477]
[1734943685573,12.81455477,184.0,183.93,12.81455477]
[1734943685773,12.81455477,184.01,183.94,12.81455477]
[1734943686370,2.16986962,184.02,184.0,32.81455477]
[1734943686574,0.6715179,184.08,184.02,1.5105]
[1734943686774,0.6715179,184.08,184.07,12.81455477]
[1734943686974,0.6715179,184.08,184.05,12.81455477]
[1734943687276,0.6715179,184.08,184.07,12.81455477]
[1734943687498,0.6715179,184.08,184.07,37.40607086]
[1734943687817,0.6715179,184.08,184.07,12.81455477]
[1734943688196,0.6715179,184.08,184.07,13.62917834]
[1734943688803,1.78491792,184.09,184.07,13.62917834]
[1734943692417,1.78491792,184.09,184.08,23.776884]
[1734943693407,0.132,184.19,184.15,12.81455477]
[1734943693591,0.132,184.19,184.17,12.81455477]
[1734943695832,0.132,184.19,184.18,0.81416768]
[1734943696708,0.132,184.19,184.13,2.34017278]
[1734943696902,0.132,184.19,184.15,12.81455477]
[1734943697839,0.132,184.19,184.17,12.81455477]
[1734943698346,0.132,184.19,184.18,0.8143656]
[1734943699410,0.132,184.19,184.17,12.81455477]
[1734943703752,0.132,184.19,184.15,12.81455477]
[1734943704142,0.132,184.19,184.16,12.81455477]
[1734943704646,0.132,184.19,184.15,12.81455477]
[1734943709669,0.132,184.19,184.16,12.81455477]
[1734943710141,0.132,184.19,184.17,12.81455477]
[1734943710320,0.132,184.19,184.18,13.62890042]
[1734943710957,0.6715179,184.26,184.18,13.62890042]
[1734943711175,0.6715179,184.26,184.21,12.81455477]
[1734943711377,0.6715179,184.26,184.22,12.81455477]
[1734943712082,0.6715179,184.26,184.23,12.81455477]
[1734943712578,0.6715179,184.26,184.24,12.81455477]
[1734943712959,0.6715179,184.26,184.23,12.81455477]
[1734943713476,0.6715179,184.26,184.22,12.81455477]
[1734943714470,0.6715179,184.26,184.23,12.81455477]
[1734943714975,0.6715179,184.26,184.21,12.81455477]
[1734943715152,0.6715179,184.26,184.2,12.81455477]
[1734943720484,0.6715179,184.26,184.22,12.81455477]
[1734943720685,0.6715179,184.26,184.21,12.81455477]
[1734943720985,0.6715179,184.26,184.2,12.81455477]
[1734943721177,0.6715179,184.26,184.19,12.81455477]
[1734943721906,0.6715179,184.26,184.2,12.81455477]
[1734943722072,0.6715179,184.26,184.21,12.81455477]
[1734943722276,0.6715179,184.26,184.23,12.81455477]
[1734943723264,0.6715179,184.26,184.21,12.81455477]
[1734943724387,0.6715179,184.26,184.2,12.81455477]
[1734943724972,0.6715179,184.26,184.21,12.81455477]
[1734943725698,0.6715179,184.26,184.22,12.81455477]
[1734943726303,0.6715179,184.26,184.23,12.81455477]
[1734943728108,0.6715179,184.26,184.24,12.81455477]
[1734943729795,0.6715179,184.26,184.23,12.81455477]
[1734943730297,0.6715179,184.26,184.23,8.15323827]
[1734943730592,0.6715179,184.26,184.18,0.8140824]
[1734943730763,0.6715179,184.26,184.23,8.15323827]
[1734943731390,0.6715179,184.26,184.24,8.15323827]
[1734943732773,0.6715179,184.26,184.25,8.15323827]
[1734943739808,0.6715179,184.26,184.25,31.93012227]
[1734943740108,0.6715179,184.26,184.25,32.74378788]
[1734943740306,0.6715179,184.26,184.25,32.86927788]
[1734943740488,20.0,184.35,184.25,32.86927788]
[1734943740688,20.0,184.35,184.32,8.15323827]
[1734943740898,20.0,184.35,184.34,8.15323827]
[1734943741485,20.0,184.35,184.34,32.74357737]
[1734943741811,17.39220496,184.35,184.34,32.86906737]
[1734943742288,17.39220496,184.35,184.34,37.43044324]
[1734943742487,17.39220496,184.35,184.34,13.52806924]
[1734943742787,17.39220496,184.35,184.34,12.71461414]
[1734943743709,17.39220496,184.35,184.34,12.84010414]
[1734943744014,17.39220496,184.35,184.34,20.81331692]
[1734943744309,17.39220496,184.35,184.34,57.30481506]
[1734943744514,17.39220496,184.35,184.34,57.43030506]
[1734943745892,17.39220496,184.35,184.34,44.71569092]
[1734943746100,17.39220496,184.35,184.34,57.43030506]
[1734943746295,0.163,184.42,184.35,43.902374]
[1734943746502,0.6715179,184.45,184.41,12.71461414]
[1734943746808,0.6715179,184.45,184.43,12.71461414]
[1734943747115,0.6715179,184.45,184.41,12.71461414]
[1734943747314,0.163,184.44,184.42,12.71461414]
[1734943749536,0.163,184.44,184.39,12.71461414]
[1734943749699,12.71461414,184.42,184.35,12.71461414]
[1734943750028,0.163,184.42,184.36,12.71461414]
[1734943750327,0.163,184.42,184.38,12.71461414]
[1734943750530,0.163,184.42,184.32,20.94673942]
[1734943750531,0.163,184.42,184.39,12.71461414]
[1734943751323,0.163,184.42,184.36,12.71461414]
[1734943753223,12.71461414,184.4,184.33,12.71461414]
[1734943753624,12.71461414,184.39,184.32,12.71461414]
[1734943755200,20.65661414,184.4,184.33,12.71461414]
[1734943755498,7.942,184.4,184.35,12.71461414]
[1734943755897,7.942,184.4,184.34,12.71461414]
[1734943756329,12.71461414,184.39,184.32,12.71461414]
[1734943756701,20.65661414,184.4,184.33,12.71461414]
[1734943758026,12.71461414,184.39,184.32,12.71461414]
[1734943758511,12.71461414,184.36,184.29,12.71461414]
[1734943758714,12.71461414,184.34,184.27,13.52834391]
[1734943759034,12.71461414,184.33,184.26,12.71461414]
[1734943759334,12.71461414,184.33,184.24,0.81372977]
[1734943759335,12.71461414,184.34,184.27,12.71461414]
[1734943759533,12.71461414,184.34,184.28,12.71461414]
[1734943759701,12.71461414,184.35,184.28,12.71461414]
[1734943760232,4.0676,184.38,184.28,12.71461414]
[1734943760422,12.71461414,184.35,184.28,12.71461414]
[1734943761109,12.71461414,184.34,184.27,12.71461414]
[1734943762927,12.71461414,184.34,184.24,0.81372977]
[1734943762928,12.71461414,184.35,184.28,12.71461414]
[1734943764427,12.71461414,184.36,184.29,12.71461414]
[1734943764633,16.78271414,184.36,184.29,12.71461414]
[1734943764937,12.71461414,184.35,184.28,12.71461414]
[1734943765126,12.71461414,184.35,184.27,12.71461414]
[1734943765825,12.71461414,184.33,184.26,12.71461414]
[1734943766537,4.0685,184.34,184.15,2.43498257]
[1734943766538,12.71461414,184.27,184.15,2.43498257]
[1734943766735,12.71461414,184.29,184.23,12.71461414]
[1734943766924,8.0109,184.32,184.25,12.71461414]
[1734943766925,20.72551414,184.32,184.25,12.71461414]
[1734943768036,16.78381414,184.31,184.18,0.81391646]
[1734943768221,16.78381414,184.31,184.23,12.71461414]
[1734943768416,8.0109,184.32,184.26,12.71461414]
[1734943768622,8.0109,184.32,184.27,12.71461414]
[1734943769633,8.0109,184.32,184.28,12.71461414]
[1734943769835,8.0109,184.32,184.27,12.71461414]
[1734943770440,8.0109,184.32,184.26,12.71461414]
[1734943770934,8.0109,184.32,184.25,12.71461414]
[1734943771134,8.0109,184.32,184.26,12.71461414]
[1734943771331,8.0109,184.32,184.27,12.71461414]
[1734943771529,20.63691414,184.36,184.29,12.71461414]
[1734943772925,12.71461414,184.34,184.26,12.71461414]
[1734943773125,12.71461414,184.34,184.27,0.81374383]
[1734943773942,12.71461414,184.34,184.26,12.71461414]
[1734943774828,12.71461414,184.32,184.26,12.71461414]
[1734943775025,12.71461414,184.33,184.26,12.71461414]
[1734943776416,12.71461414,184.33,184.27,0.81382831]
[1734943778547,12.71461414,184.33,184.26,13.52837802]
[1734943779844,12.71461414,184.33,184.26,12.71461414]
[1734943780441,12.71461414,184.32,184.24,12.71461414]
[1734943780640,11.9904,184.36,184.24,20.0]
[1734943780641,12.71461414,184.31,184.24,20.0]
[1734943780829,11.9904,184.36,184.24,20.0]
[1734943780830,12.71461414,184.3,184.24,20.0]
[1734943781833,12.71461414,184.3,184.23,13.52836906]
[1734943782234,8.15191533,184.31,184.23,8.96567025]
[1734943784355,8.15191533,184.3,184.23,8.96567025]
[1734943784849,8.15191533,184.33,184.23,0.81375492]
[1734943785054,8.15191533,184.31,184.23,8.96567025]
[1734943785355,8.15191533,184.3,184.23,8.96567025]
[1734943785547,8.15191533,184.31,184.24,8.15191533]
[1734943787753,11.9904,184.36,184.22,20.0]
[1734943787754,8.15191533,184.3,184.22,8.15191533]
[1734943788054,8.15191533,184.32,184.25,8.15191533]
[1734943788270,7.9223,184.36,184.28,8.15191533]
[1734943788568,1.5885,184.4,184.31,8.15191533]
[1734943788728,1.5885,184.4,184.33,8.15191533]
[1734943788934,1.5885,184.4,184.34,0.81343204]
[1734943789353,8.7766179,184.45,184.34,8.96534737]
[1734943789559,8.15191533,184.43,184.35,8.15191533]
[1734943789850,8.31491533,184.42,184.35,8.15191533]
[1734943790065,8.15191533,184.4,184.33,28.15191533]
[1734943790269,12.72381169,184.4,184.33,12.72381169]
[1734943790476,12.72381169,184.39,184.32,13.53730494]
[1734943791162,12.72381169,184.38,184.31,12.72381169]
[1734943791336,12.72381169,184.37,184.3,12.72381169]
[1734943791537,12.72381169,184.37,184.3,13.53744908]
[1734943792263,12.72381169,184.38,184.31,12.72381169]
[1734943793260,12.72381169,184.4,184.32,13.53739135]
[1734943793472,12.72381169,184.4,184.33,12.72381169]
[1734943793640,12.72381169,184.41,184.34,13.53727129]
[1734943794259,0.163,184.42,184.36,12.72381169]
[1734943794564,0.163,184.42,184.39,12.72381169]
[1734943794939,0.163,184.42,184.38,12.72381169]
[1734943795257,0.163,184.42,184.39,13.5370442]
[1734943796557,0.163,184.42,184.39,0.81323251]
[1734943796761,0.163,184.42,184.39,13.5370442]
[1734943798568,0.163,184.42,184.37,13.53702095]
[1734943799057,0.163,184.42,184.38,12.72381169]
[1734943800359,0.163,184.42,184.37,13.53702095]
[1734943801051,0.163,184.42,184.38,12.72381169]
[1734943801243,0.163,184.42,184.4,12.72381169]
[1734943801443,0.163,184.42,184.38,12.72381169]
[1734943801753,0.163,184.42,184.39,12.72381169]
[1734943802343,0.163,184.42,184.4,0.81318957]
[1734943802543,0.163,184.42,184.4,13.53700126]
[1734943804259,0.163,184.42,184.41,12.72381169]
[1734943804461,0.163,184.42,184.41,13.53688499]
[1734943804654,0.163,184.42,184.41,57.84128068]
[1734943805168,0.163,184.42,184.41,45.11746899]
[1734943806242,0.163,184.42,184.41,21.34058499]
[1734943806953,0.163,184.42,184.39,0.81306747]